[Event "Nordstansblixten 2025"]
[Site "Nordstan, Göteborg, Sweden"]
[Date "2025.05.10"]
[Round "5.7"]
[White "Cigoja, Vuk"]
[Black "Kadunic, Admir"]
[Result "0-1"]
[TimeControl "3 minutes + 2 seconds per move from move one"]
[WhiteFideId "14411628"]
[BlackFideId "1773542"]
[WhiteElo "1719"]
[BlackElo "2109"]

1. e4 {[%clk 00:03:01]} {[%emt 00:00:03]} d6 {[%clk 00:03:04]} 2. Nf3 {[%clk
00:03:02]} Nf6 {[%clk 00:03:05]} 3. Nc3 {[%clk 00:03:00]} {[%emt 00:00:03]} g6
{[%clk 00:03:06]} 4. h3 {[%clk 00:03:02]} Bg7 {[%clk 00:03:07]} 5. d4 {[%clk
00:03:01]} {[%emt 00:00:03]} O-O {[%clk 00:03:08]} {[%emt 00:00:02]} 6. Be3
{[%clk 00:02:59]} {[%emt 00:00:04]} c6 {[%clk 00:03:09]} {[%emt 00:00:02]} 7.
Bd3 {[%clk 00:02:55]} {[%emt 00:00:05]} b5 {[%clk 00:03:09]} {[%emt 00:00:02]}
8. Ne2 {[%clk 00:02:51]} {[%emt 00:00:06]} a5 {[%clk 00:03:09]} {[%emt
00:00:03]} 9. c4 {[%clk 00:02:48]} {[%emt 00:00:05]} Ba6 {[%clk 00:02:51]}
{[%emt 00:00:20]} 10. cxb5 {[%clk 00:02:38]} {[%emt 00:00:12]} Bxb5 {[%clk
00:02:50]} {[%emt 00:00:03]} 11. Bxb5 {[%clk 00:02:36]} {[%emt 00:00:03]} cxb5
{[%clk 00:02:52]} 12. e5 {[%clk 00:02:28]} {[%emt 00:00:11]} Ne8 {[%clk
00:02:49]} {[%emt 00:00:04]} 13. O-O {[%clk 00:02:27]} {[%emt 00:00:02]} Nc6
{[%clk 00:02:50]} {[%emt 00:00:03]} 14. Bf4 {[%clk 00:02:11]} {[%emt 00:00:17]}
Qb6 {[%clk 00:02:38]} {[%emt 00:00:13]} 15. exd6 {[%clk 00:02:00]} {[%emt
00:00:14]} Nxd6 {[%clk 00:02:38]} {[%emt 00:00:02]} 16. Ne5 {[%clk 00:01:49]}
{[%emt 00:00:12]} Rad8 {[%clk 00:02:22]} {[%emt 00:00:18]} 17. Rc1 {[%clk
00:01:42]} {[%emt 00:00:09]} Nxe5 {[%clk 00:02:19]} {[%emt 00:00:06]} 18. dxe5
{[%clk 00:01:39]} {[%emt 00:00:04]} Nc4 {[%clk 00:02:19]} {[%emt 00:00:03]} 19.
Qb3 {[%clk 00:01:36]} {[%emt 00:00:05]} Nxe5 {[%clk 00:02:09]} {[%emt
00:00:12]} 20. Be3 {[%clk 00:01:26]} {[%emt 00:00:11]} Qb7 {[%clk 00:02:00]}
{[%emt 00:00:11]} 21. Rfd1 {[%clk 00:01:16]} {[%emt 00:00:12]} Nd3 {[%clk
00:01:39]} {[%emt 00:00:23]} 22. Rxd3 {[%clk 00:00:56]} {[%emt 00:00:22]} Rxd3
{[%clk 00:01:38]} {[%emt 00:00:09]} 23. Qxd3 {[%clk 00:00:55]} Bxb2 {[%clk
00:01:39]} 24. Rb1 {[%clk 00:00:54]} {[%emt 00:00:01]} Bf6 {[%clk 00:01:37]}
{[%emt 00:00:04]} 25. Rxb5 {[%clk 00:00:53]} {[%emt 00:00:03]} Qc7 {[%clk
00:01:37]} {[%emt 00:00:02]} 26. Rc5 {[%clk 00:00:51]} {[%emt 00:00:04]} Qb8
{[%clk 00:01:26]} {[%emt 00:00:13]} 27. Bf4 {[%clk 00:00:49]} {[%emt 00:00:04]}
Qb2 {[%clk 00:01:25]} {[%emt 00:00:03]} 28. Rxa5 {[%clk 00:00:45]} {[%emt
00:00:06]} Qa1+ {[%clk 00:01:23]} {[%emt 00:00:04]} 29. Kh2 {[%clk 00:00:44]}
{[%emt 00:00:03]} Qe1 {[%clk 00:01:24]} 30. Bg3 {[%clk 00:00:42]} {[%emt
00:00:04]} Qxa5 {[%clk 00:01:24]} {[%emt 00:00:03]} 31. a3 {[%clk 00:00:35]}
{[%emt 00:00:09]} Ra8 {[%clk 00:01:23]} {[%emt 00:00:02]} 32. Qd7 {[%clk
00:00:23]} {[%emt 00:00:14]} Qxa3 {[%clk 00:01:17]} {[%emt 00:00:09]} 33. Nf4
{[%clk 00:00:23]} {[%emt 00:00:01]} Qa7 {[%clk 00:01:13]} {[%emt 00:00:07]} 34.
Qg4 {[%clk 00:00:21]} {[%emt 00:00:03]} Qa4 {[%clk 00:01:10]} {[%emt 00:00:05]}
35. Qf3 {[%clk 00:00:21]} {[%emt 00:00:02]} Qa3 {[%clk 00:01:06]} {[%emt
00:00:06]} 36. Qe4 {[%clk 00:00:20]} {[%emt 00:00:02]} Ra4 {[%clk 00:01:03]}
{[%emt 00:00:07]} 37. Qd5 {[%clk 00:00:17]} {[%emt 00:00:04]} Qd6 {[%clk
00:00:58]} {[%emt 00:00:07]} 38. Qxd6 {[%clk 00:00:11]} {[%emt 00:00:08]} exd6
{[%clk 00:00:59]} 39. Nd5 {[%clk 00:00:12]} Be5 {[%clk 00:00:59]} {[%emt
00:00:03]} 40. f4 {[%clk 00:00:12]} {[%emt 00:00:02]} Bg7 {[%clk 00:00:50]}
{[%emt 00:00:11]} 41. f5 {[%clk 00:00:12]} {[%emt 00:00:02]} Be5 {[%clk
00:00:51]} {[%emt 00:00:01]} 42. fxg6 {[%clk 00:00:10]} {[%emt 00:00:03]} hxg6
{[%clk 00:00:52]} 43. Ne7+ {[%clk 00:00:08]} {[%emt 00:00:05]} Kf8 {[%clk
00:00:48]} {[%emt 00:00:06]} 44. Nc6 {[%clk 00:00:09]} Bxg3+ {[%clk 00:00:45]}
{[%emt 00:00:05]} 45. Kxg3 {[%clk 00:00:10]} Ke8 {[%clk 00:00:44]} {[%emt
00:00:04]} 46. Kf3 {[%clk 00:00:10]} {[%emt 00:00:02]} Kd7 {[%clk 00:00:44]}
{[%emt 00:00:01]} 47. Nb8+ {[%clk 00:00:07]} {[%emt 00:00:06]} Kc7 {[%clk
00:00:44]} {[%emt 00:00:03]} 0-1

[Event "Nordstansblixten 2025"]
[Site "Nordstan, Göteborg, Sweden"]
[Date "2025.05.10"]
[Round "5.8"]
[White "Hammar, Arvid"]
[Black "Vairav, Vihaan"]
[Result "1-0"]
[TimeControl "3 minutes + 2 seconds per move from move one"]
[WhiteFideId "1735977"]
[BlackFideId "1783971"]
[WhiteElo "1667"]
[BlackElo "1463"]

1. c4 {[%clk 00:03:03]} e5 {[%clk 00:03:03]} {[%emt 00:00:02]} 2. Nc3 {[%clk
00:03:03]} {[%emt 00:00:01]} Nf6 {[%clk 00:02:56]} {[%emt 00:00:08]} 3. g3
{[%clk 00:03:04]} {[%emt 00:00:01]} Bc5 {[%clk 00:02:51]} {[%emt 00:00:08]} 4.
Bg2 {[%clk 00:03:03]} {[%emt 00:00:03]} O-O {[%clk 00:02:36]} {[%emt 00:00:17]}
5. e3 {[%clk 00:02:58]} {[%emt 00:00:06]} Nc6 {[%clk 00:02:34]} {[%emt
00:00:05]} 6. Nge2 {[%clk 00:02:56]} {[%emt 00:00:04]} d6 {[%clk 00:02:29]}
{[%emt 00:00:07]} 7. d4 {[%clk 00:02:55]} {[%emt 00:00:02]} exd4 {[%clk
00:02:27]} {[%emt 00:00:05]} 8. exd4 {[%clk 00:02:54]} {[%emt 00:00:03]} Bb6
{[%clk 00:02:24]} {[%emt 00:00:05]} 9. O-O {[%clk 00:02:51]} {[%emt 00:00:05]}
Bg4 {[%clk 00:02:19]} {[%emt 00:00:07]} 10. a3 {[%clk 00:02:46]} {[%emt
00:00:07]} Re8 {[%clk 00:01:58]} {[%emt 00:00:22]} 11. Be3 {[%clk 00:02:37]}
{[%emt 00:00:12]} Ne7 {[%clk 00:01:51]} {[%emt 00:00:09]} 12. b4 {[%clk
00:02:34]} {[%emt 00:00:05]} Rc8 {[%clk 00:01:48]} {[%emt 00:00:06]} 13. c5
{[%clk 00:02:32]} {[%emt 00:00:04]} dxc5 {[%clk 00:01:40]} {[%emt 00:00:10]} 14.
dxc5 {[%clk 00:02:29]} {[%emt 00:00:05]} Qxd1 {[%clk 00:01:28]} {[%emt
00:00:13]} 15. Raxd1 {[%clk 00:02:20]} Bxc5 {[%clk 00:01:20]} {[%emt 00:00:20]}
16. Bxc5 {[%clk 00:02:15]} {[%emt 00:00:07]} Ng6 {[%clk 00:01:16]} {[%emt
00:00:07]} 17. Rfe1 {[%clk 00:02:01]} {[%emt 00:00:16]} b6 {[%clk 00:01:06]}
{[%emt 00:00:12]} 18. Bd4 {[%clk 00:01:46]} {[%emt 00:00:16]} Rcd8 {[%clk
00:00:56]} {[%emt 00:00:13]} 19. h3 {[%clk 00:01:35]} {[%emt 00:00:12]} Bxe2
{[%emt 00:00:18]} 20. Nxe2 {[%clk 00:01:31]} Nd7 {[%clk 00:00:37]} {[%emt
00:00:11]} 21. Bc6 {[%clk 00:01:18]} {[%emt 00:00:15]} Re6 {[%clk 00:00:26]}
{[%emt 00:00:12]} 22. Bxd7 {[%clk 00:01:17]} {[%emt 00:00:04]} Rxd7 {[%clk
00:00:28]} 23. Be3 {[%clk 00:01:04]} {[%emt 00:00:15]} Rxd1 {[%clk 00:00:26]}
{[%emt 00:00:03]} 24. Rxd1 {[%clk 00:01:06]} {[%emt 00:00:01]} Nf8 {[%clk
00:00:16]} {[%emt 00:00:13]} 25. Nf4 {[%clk 00:01:04]} {[%emt 00:00:03]} Rc6
{[%clk 00:00:13]} {[%emt 00:00:05]} 26. Kg2 {[%clk 00:00:58]} {[%emt 00:00:08]}
Rc3 {[%clk 00:00:14]} 27. Rd3 {[%clk 00:00:56]} {[%emt 00:00:03]} Rxd3 {[%clk
00:00:14]} {[%emt 00:00:03]} 28. Nxd3 {[%clk 00:00:57]} {[%emt 00:00:01]} Ne6
{[%clk 00:00:15]} 29. f4 {[%clk 00:00:53]} {[%emt 00:00:05]} Kf8 {[%clk
00:00:16]} {[%emt 00:00:02]} 30. Kf3 {[%clk 00:00:53]} {[%emt 00:00:02]} Ke7
{[%clk 00:00:17]} 31. g4 {[%clk 00:00:51]} {[%emt 00:00:03]} Kd6 {[%clk
00:00:19]} 32. f5 {[%clk 00:00:45]} {[%emt 00:00:07]} Nd8 {[%clk 00:00:09]}
{[%emt 00:00:13]} 33. Bf4+ {[%clk 00:00:44]} {[%emt 00:00:03]} Kd7 {[%clk
00:00:10]} {[%emt 00:00:01]} 34. Ne5+ {[%clk 00:00:44]} {[%emt 00:00:02]} Ke7
{[%emt 00:00:01]} 35. b5 {[%clk 00:00:41]} {[%emt 00:00:05]} f6 {[%clk
00:00:12]} {[%emt 00:00:01]} 36. Nc6+ {[%clk 00:00:40]} {[%emt 00:00:02]} Nxc6
{[%clk 00:00:13]} {[%emt 00:00:02]} 37. bxc6 {[%clk 00:00:40]} {[%emt
00:00:01]} Kd8 {[%clk 00:00:14]} {[%emt 00:00:02]} 38. Ke4 {[%clk 00:00:39]}
{[%emt 00:00:03]} a5 {[%clk 00:00:14]} 39. Kd5 {[%clk 00:00:39]} {[%emt
00:00:03]} b5 {[%clk 00:00:11]} {[%emt 00:00:06]} 40. Kc5 {[%clk 00:00:38]}
{[%emt 00:00:03]} g5 {[%clk 00:00:11]} {[%emt 00:00:03]} 41. fxg6 {[%clk
00:00:38]} {[%emt 00:00:02]} hxg6 {[%clk 00:00:11]} {[%emt 00:00:02]} 42. Kxb5
{[%clk 00:00:36]} {[%emt 00:00:05]} g5 {[%clk 00:00:12]} 43. Be3 {[%clk
00:00:33]} {[%emt 00:00:05]} Ke7 44. Kxa5 {[%clk 00:00:32]} Ke6 {[%clk
00:00:12]} {[%emt 00:00:02]} 45. Kb5 {[%clk 00:00:31]} {[%emt 00:00:03]} Kd6
{[%clk 00:00:13]} 46. Bc5+ {[%clk 00:00:31]} {[%emt 00:00:03]} Kd5 {[%clk
00:00:14]} {[%emt 00:00:01]} 47. a4 {[%clk 00:00:29]} {[%emt 00:00:03]} Ke6
{[%clk 00:00:13]} {[%emt 00:00:04]} 48. a5 {[%clk 00:00:30]} Kd5 {[%clk
00:00:14]} 49. a6 {[%clk 00:00:31]} Ke6 {[%clk 00:00:15]} 50. a7 {[%clk
00:00:32]} {[%emt 00:00:01]} Kd5 {[%clk 00:00:17]} 51. a8=Q {[%emt 00:00:04]}
Ke6 {[%clk 00:00:18]} 52. Qe8+ {[%clk 00:00:31]} {[%emt 00:00:02]} Kd5 {[%clk
00:00:19]} 53. Qf7 {[%clk 00:00:30]} {[%emt 00:00:04]} Ke4 {[%clk 00:00:20]}
{[%emt 00:00:02]} 54. Qxf6 {[%clk 00:00:26]} {[%emt 00:00:03]} Kd3 {[%clk
00:00:06]} {[%emt 00:00:18]} 55. Qd4+ {[%clk 00:00:27]} Ke2 {[%clk 00:00:07]}
{[%emt 00:00:02]} 56. Qe3+ {[%clk 00:00:27]} Kd1 {[%clk 00:00:08]} {[%emt
00:00:01]} 57. Qf2 {[%clk 00:00:21]} {[%emt 00:00:06]} Kc1 {[%emt 00:00:04]} 58.
Kb4 {[%clk 00:00:19]} {[%emt 00:00:04]} Kd1 {[%clk 00:00:08]} {[%emt 00:00:02]}
59. Kc3 {[%clk 00:00:15]} {[%emt 00:00:05]} Kc1 {[%clk 00:00:08]} {[%emt
00:00:02]} 60. Qf1# {[%clk 00:00:13]} {[%emt 00:00:02]} 1-0

[Event "Nordstansblixten 2025"]
[Site "Nordstan, Göteborg, Sweden"]
[Date "2025.05.10"]
[Round "5.9"]
[White "Wennerholm, Camilla"]
[Black "Munuswamy, Shivakumar"]
[Result "0-1"]
[TimeControl "3 minutes + 2 seconds per move from move one"]
[WhiteFideId "1776380"]
[BlackFideId "1788914"]
[WhiteElo "1599"]
[BlackElo "1458"]

1. e4 {[%clk 00:03:03]} Nc6 {[%clk 00:03:01]} {[%emt 00:00:03]} 2. Nf3 {[%clk
00:03:04]} {[%emt 00:00:02]} g6 {[%clk 00:03:01]} {[%emt 00:00:02]} 3. d4
{[%clk 00:03:05]} d6 {[%clk 00:03:00]} {[%emt 00:00:03]} 4. Bc4 {[%clk
00:03:03]} {[%emt 00:00:04]} e6 {[%clk 00:02:59]} {[%emt 00:00:03]} 5. Nc3
{[%clk 00:03:03]} {[%emt 00:00:02]} Bg7 {[%clk 00:02:58]} {[%emt 00:00:03]} 6.
O-O {[%clk 00:03:02]} {[%emt 00:00:03]} Nf6 {[%clk 00:02:55]} {[%emt 00:00:05]}
7. Bg5 {[%clk 00:03:02]} {[%emt 00:00:02]} h6 {[%clk 00:02:45]} {[%emt
00:00:13]} 8. Bxf6 {[%clk 00:03:01]} {[%emt 00:00:03]} Bxf6 {[%clk 00:02:45]}
{[%emt 00:00:02]} 9. Re1 {[%clk 00:02:59]} {[%emt 00:00:03]} d5 {[%clk
00:02:35]} {[%emt 00:00:12]} 10. Bb5 {[%clk 00:03:00]} {[%emt 00:00:01]} dxe4
{[%clk 00:02:28]} {[%emt 00:00:09]} 11. Bxc6+ {[%clk 00:02:59]} {[%emt
00:00:04]} bxc6 {[%clk 00:02:29]} 12. Nxe4 {[%clk 00:02:59]} {[%emt 00:00:02]}
Bg7 {[%clk 00:02:25]} {[%emt 00:00:05]} 13. c3 {[%clk 00:02:48]} {[%emt
00:00:13]} O-O {[%clk 00:02:24]} {[%emt 00:00:03]} 14. Nfd2 {[%clk 00:02:37]}
{[%emt 00:00:13]} Rb8 {[%clk 00:02:21]} {[%emt 00:00:05]} 15. b3 {[%clk
00:02:32]} {[%emt 00:00:07]} Bb7 {[%clk 00:02:17]} {[%emt 00:00:06]} 16. Qf3
{[%clk 00:02:27]} {[%emt 00:00:07]} f5 {[%clk 00:02:07]} {[%emt 00:00:11]} 17.
Nc5 {[%clk 00:02:20]} {[%emt 00:00:10]} Qd5 {[%clk 00:01:54]} {[%emt 00:00:15]}
18. Qg3 {[%clk 00:02:09]} {[%emt 00:00:13]} Rf6 {[%clk 00:01:50]} {[%emt
00:00:05]} 19. Nxb7 {[%clk 00:02:01]} {[%emt 00:00:11]} Rxb7 {[%clk 00:01:50]}
{[%emt 00:00:01]} 20. Re5 {[%clk 00:02:01]} {[%emt 00:00:03]} Qd6 {[%clk
00:01:47]} {[%emt 00:00:05]} 21. Rae1 {[%clk 00:01:52]} {[%emt 00:00:12]} Rb5
{[%clk 00:01:42]} {[%emt 00:00:06]} 22. Nc4 {[%clk 00:01:52]} {[%emt 00:00:02]}
Qd7 {[%clk 00:01:33]} {[%emt 00:00:11]} 23. R5e3 {[%clk 00:01:41]} {[%emt
00:00:12]} f4 {[%clk 00:01:28]} {[%emt 00:00:08]} 24. Ne5 {[%clk 00:01:27]}
{[%emt 00:00:15]} Qd5 {[%clk 00:01:22]} {[%emt 00:00:07]} 25. Qf3 {[%clk
00:01:15]} {[%emt 00:00:15]} fxe3 {[%clk 00:01:20]} {[%emt 00:00:03]} 26. Qxd5
{[%clk 00:01:12]} {[%emt 00:00:06]} cxd5 {[%clk 00:01:19]} {[%emt 00:00:02]} 27.
fxe3 {[%clk 00:01:12]} {[%emt 00:00:03]} Rf8 {[%clk 00:01:10]} {[%emt
00:00:11]} 28. Nd7 {[%clk 00:01:06]} {[%emt 00:00:08]} Rd8 {[%clk 00:01:08]}
{[%emt 00:00:04]} 29. Nc5 {[%clk 00:01:06]} {[%emt 00:00:02]} Re8 {[%clk
00:01:02]} {[%emt 00:00:09]} 30. h4 {[%clk 00:00:58]} {[%emt 00:00:11]} a5
{[%clk 00:00:58]} {[%emt 00:00:05]} 31. Kh2 {[%clk 00:00:53]} {[%emt 00:00:07]}
e5 {[%clk 00:00:58]} {[%emt 00:00:02]} 32. Rf1 {[%clk 00:00:44]} {[%emt
00:00:12]} exd4 {[%clk 00:00:51]} {[%emt 00:00:08]} 33. exd4 {[%clk 00:00:43]}
{[%emt 00:00:03]} Rb6 {[%clk 00:00:42]} {[%emt 00:00:12]} 34. Nd7 {[%clk
00:00:38]} {[%emt 00:00:06]} Rbe6 {[%clk 00:00:40]} {[%emt 00:00:04]} 35. Nc5
{[%clk 00:00:29]} {[%emt 00:00:11]} Re2 {[%clk 00:00:41]} {[%emt 00:00:02]} 36.
a4 {[%clk 00:00:22]} {[%emt 00:00:10]} Rc2 {[%clk 00:00:39]} {[%emt 00:00:04]}
37. Rf3 {[%clk 00:00:14]} {[%emt 00:00:09]} Ree2 {[%clk 00:00:38]} {[%emt
00:00:03]} 38. Rg3 {[%clk 00:00:11]} {[%emt 00:00:05]} Kh7 {[%clk 00:00:34]}
{[%emt 00:00:06]} 39. Kh3 {[%clk 00:00:10]} {[%emt 00:00:03]} c6 {[%clk
00:00:32]} {[%emt 00:00:04]} 40. Kh2 {[%clk 00:00:03]} {[%emt 00:00:09]} Rc1
{[%clk 00:00:24]} {[%emt 00:00:09]} 41. Kh3 {[%clk 00:00:03]} {[%emt 00:00:01]}
Ree1 {[%clk 00:00:24]} {[%emt 00:00:02]} 42. Kg4 {[%clk 00:00:04]} {[%emt
00:00:02]} Rb1 {[%clk 00:00:17]} {[%emt 00:00:08]} 43. Kf3 {[%emt 00:00:03]}
Rf1+ {[%clk 00:00:14]} {[%emt 00:00:04]} 44. Ke2 {[%clk 00:00:06]} {[%emt
00:00:01]} Rf7 {[%clk 00:00:10]} {[%emt 00:00:06]} 45. Kd2 {[%clk 00:00:05]}
{[%emt 00:00:03]} Rf2+ {[%clk 00:00:09]} {[%emt 00:00:03]} 46. Ke3 {[%emt
00:00:02]} Rc2 {[%clk 00:00:07]} {[%emt 00:00:03]} 47. Kf4 {[%clk 00:00:05]}
{[%emt 00:00:03]} Rbc1 {[%clk 00:00:07]} {[%emt 00:00:02]} 48. Kg4 {[%clk
00:00:04]} {[%emt 00:00:03]} Rxc3 {[%clk 00:00:07]} {[%emt 00:00:02]} 49. Rxc3
{[%clk 00:00:04]} {[%emt 00:00:02]} Rxc3 {[%clk 00:00:07]} {[%emt 00:00:02]} 50.
g3 {[%clk 00:00:03]} {[%emt 00:00:03]} Bxd4 {[%clk 00:00:07]} {[%emt 00:00:01]}
51. Ne6 {[%clk 00:00:03]} {[%emt 00:00:03]} Bf2 {[%clk 00:00:07]} {[%emt
00:00:02]} 52. Kh3 {[%clk 00:00:04]} {[%emt 00:00:02]} Rxg3+ {[%clk 00:00:06]}
{[%emt 00:00:02]} 53. Kh2 {[%clk 00:00:04]} {[%emt 00:00:02]} Rxb3 {[%emt
00:00:06]} 54. h5 {[%clk 00:00:04]} Ra3 {[%clk 00:00:05]} 55. Nf8+ {[%clk
00:00:04]} {[%emt 00:00:03]} Kg7 {[%clk 00:00:06]} {[%emt 00:00:01]} 56. Nxg6
{[%clk 00:00:04]} {[%emt 00:00:01]} Rxa4 {[%clk 00:00:06]} {[%emt 00:00:02]} 57.
Nf4 {[%clk 00:00:04]} {[%emt 00:00:02]} Rxf4 {[%clk 00:00:04]} {[%emt
00:00:04]} 58. Kg2 {[%clk 00:00:05]} Bc5 {[%clk 00:00:05]} {[%emt 00:00:01]} 59.
Kh2 {[%clk 00:00:06]} {[%emt 00:00:01]} Rh4+ {[%clk 00:00:05]} {[%emt
00:00:02]} 60. Kg3 {[%clk 00:00:07]} Rxh5 {[%clk 00:00:06]} 61. Kg2 {[%clk
00:00:09]} {[%emt 00:00:01]} Re5 {[%clk 00:00:07]} {[%emt 00:00:01]} 62. Kg3
{[%clk 00:00:10]} a4 {[%clk 00:00:08]} 63. Kh3 {[%clk 00:00:10]} {[%emt
00:00:01]} a3 {[%clk 00:00:09]} 64. Kg4 {[%clk 00:00:11]} a2 {[%clk 00:00:10]}
65. Kf4 {[%clk 00:00:12]} Re8 {[%clk 00:00:09]} {[%emt 00:00:03]} 66. Kf3
{[%clk 00:00:13]} 0-1

[Event "Nordstansblixten 2025"]
[Site "Nordstan, Göteborg, Sweden"]
[Date "2025.05.10"]
[Round "6.1"]
[White "Torres, Lucas"]
[Black "Kadunic, Admir"]
[Result "1/2-1/2"]
[TimeControl "3 minutes + 2 seconds per move from move one"]
[WhiteFideId "1769464"]
[BlackFideId "1773542"]
[WhiteElo "1805"]
[BlackElo "2109"]

1. e4 {[%clk 00:03:02]} {[%emt 00:00:02]} d6 {[%clk 00:03:01]} {[%emt
00:00:04]} 2. d4 {[%clk 00:03:02]} {[%emt 00:00:02]} c5 {[%clk 00:03:02]} 3.
dxc5 {[%clk 00:02:59]} {[%emt 00:00:05]} Qa5+ {[%clk 00:03:03]} 4. Nc3 {[%clk
00:02:59]} {[%emt 00:00:02]} Qxc5 {[%clk 00:03:04]} 5. Be3 {[%clk 00:02:50]}
{[%emt 00:00:10]} Qa5 {[%clk 00:03:03]} {[%emt 00:00:04]} 6. Bc4 {[%clk
00:02:26]} {[%emt 00:00:25]} Nf6 {[%clk 00:03:03]} {[%emt 00:00:03]} 7. f3
{[%clk 00:02:03]} {[%emt 00:00:25]} Nc6 {[%clk 00:03:02]} {[%emt 00:00:04]} 8.
Nge2 {[%clk 00:01:55]} {[%emt 00:00:08]} g6 {[%clk 00:03:02]} {[%emt 00:00:03]}
9. Nd4 {[%clk 00:01:51]} {[%emt 00:00:06]} Bd7 {[%clk 00:02:54]} {[%emt
00:00:11]} 10. Qd2 {[%clk 00:01:50]} {[%emt 00:00:02]} Bg7 {[%clk 00:02:53]}
{[%emt 00:00:03]} 11. O-O {[%clk 00:01:44]} {[%emt 00:00:08]} O-O {[%clk
00:02:35]} {[%emt 00:00:21]} 12. Rad1 {[%clk 00:01:38]} {[%emt 00:00:08]} Rac8
{[%clk 00:02:30]} {[%emt 00:00:07]} 13. Bb3 {[%clk 00:01:34]} {[%emt 00:00:06]}
Ne5 {[%clk 00:02:24]} {[%emt 00:00:08]} 14. Nd5 {[%clk 00:01:20]} {[%emt
00:00:14]} Qd8 {[%clk 00:02:21]} {[%emt 00:00:06]} 15. Nxf6+ {[%clk 00:01:20]}
{[%emt 00:00:03]} Bxf6 {[%clk 00:02:22]} 16. Qe2 {[%clk 00:01:06]} {[%emt
00:00:15]} a6 {[%clk 00:02:14]} {[%emt 00:00:11]} 17. Kh1 {[%clk 00:00:56]}
{[%emt 00:00:12]} Qc7 {[%clk 00:02:10]} {[%emt 00:00:06]} 18. c3 {[%clk
00:00:55]} {[%emt 00:00:02]} Nc4 {[%clk 00:01:52]} {[%emt 00:00:21]} 19. Bxc4
{[%clk 00:00:56]} {[%emt 00:00:01]} Qxc4 {[%clk 00:01:53]} 20. Qxc4 {[%clk
00:00:57]} {[%emt 00:00:02]} Rxc4 {[%clk 00:01:55]} 21. Nc2 {[%clk 00:00:51]}
{[%emt 00:00:06]} Be6 {[%clk 00:01:42]} {[%emt 00:00:16]} 22. Bd4 {[%clk
00:00:48]} {[%emt 00:00:05]} Kg7 {[%clk 00:01:08]} {[%emt 00:00:36]} 23. Ne3
{[%clk 00:00:43]} {[%emt 00:00:06]} Rc6 {[%clk 00:01:06]} {[%emt 00:00:04]} 24.
Nd5 {[%clk 00:00:40]} {[%emt 00:00:06]} Bxd5 {[%clk 00:01:00]} {[%emt
00:00:08]} 25. exd5 {[%emt 00:00:06]} Rc4 {[%clk 00:00:57]} {[%emt 00:00:02]}
26. Bxf6+ {[%clk 00:00:37]} {[%emt 00:00:04]} Kxf6 {[%clk 00:00:53]} {[%emt
00:00:06]} 27. Rfe1 {[%clk 00:00:37]} {[%emt 00:00:02]} Rd8 {[%clk 00:00:49]}
{[%emt 00:00:06]} 28. Kg1 {[%clk 00:00:31]} {[%emt 00:00:08]} b5 {[%clk
00:00:48]} {[%emt 00:00:03]} 29. Re4 {[%clk 00:00:28]} {[%emt 00:00:05]} Rc5
{[%clk 00:00:48]} {[%emt 00:00:02]} 30. Kf2 {[%clk 00:00:27]} {[%emt 00:00:03]}
Rd7 {[%clk 00:00:49]} {[%emt 00:00:01]} 31. Ke3 {[%clk 00:00:27]} {[%emt
00:00:02]} Rdc7 {[%clk 00:00:50]} {[%emt 00:00:01]} 32. Kd4 {[%clk 00:00:25]}
{[%emt 00:00:04]} a5 {[%clk 00:00:47]} {[%emt 00:00:06]} 33. Rde1 {[%clk
00:00:24]} {[%emt 00:00:02]} b4 {[%clk 00:00:42]} {[%emt 00:00:07]} 34. cxb4
{[%clk 00:00:25]} axb4 {[%clk 00:00:43]} 35. Ke3 {[%clk 00:00:24]} {[%emt
00:00:03]} Ra7 {[%clk 00:00:30]} {[%emt 00:00:15]} 36. Rxb4 {[%clk 00:00:24]}
{[%emt 00:00:02]} Rxa2 {[%clk 00:00:31]} {[%emt 00:00:01]} 37. Rf4+ {[%clk
00:00:21]} {[%emt 00:00:05]} Kg7 {[%clk 00:00:30]} {[%emt 00:00:03]} 38. Kf2
{[%clk 00:00:17]} {[%emt 00:00:06]} Rxb2+ {[%clk 00:00:30]} {[%emt 00:00:02]}
39. Kg3 {[%clk 00:00:18]} Rb7 {[%clk 00:00:25]} {[%emt 00:00:07]} 40. Rd4
{[%clk 00:00:19]} Kf6 {[%clk 00:00:22]} {[%emt 00:00:05]} 41. Rf4+ {[%clk
00:00:20]} {[%emt 00:00:02]} Kg7 {[%clk 00:00:21]} {[%emt 00:00:02]} 42. Rd4
{[%clk 00:00:21]} {[%emt 00:00:01]} Rcc7 {[%clk 00:00:18]} {[%emt 00:00:05]} 43.
h4 {[%emt 00:00:05]} Rb8 {[%clk 00:00:19]} 44. Kg4 {[%clk 00:00:19]} {[%emt
00:00:02]} Rbc8 {[%clk 00:00:20]} 45. Ree4 {[%clk 00:00:19]} {[%emt 00:00:02]}
Kf8 {[%clk 00:00:21]} {[%emt 00:00:01]} 46. Kg5 {[%clk 00:00:18]} {[%emt
00:00:02]} Kg7 {[%clk 00:00:23]} 47. Kf4 {[%clk 00:00:19]} {[%emt 00:00:02]} h6
{[%clk 00:00:23]} {[%emt 00:00:03]} 48. g4 {[%clk 00:00:19]} {[%emt 00:00:01]}
Rd8 {[%clk 00:00:21]} {[%emt 00:00:04]} 49. Rd3 {[%clk 00:00:20]} {[%emt
00:00:02]} Rdd7 {[%clk 00:00:21]} {[%emt 00:00:02]} 50. Rde3 {[%clk 00:00:20]}
{[%emt 00:00:02]} Kf6 {[%clk 00:00:21]} {[%emt 00:00:02]} 51. g5+ {[%clk
00:00:20]} {[%emt 00:00:01]} Kg7 {[%clk 00:00:22]} 52. Kg4 {[%clk 00:00:21]}
{[%emt 00:00:01]} f6 {[%clk 00:00:22]} {[%emt 00:00:03]} 53. gxf6+ {[%clk
00:00:18]} {[%emt 00:00:04]} exf6 {[%clk 00:00:23]} 54. Re6 {[%clk 00:00:19]}
{[%emt 00:00:02]} Kf7 {[%clk 00:00:21]} {[%emt 00:00:03]} 55. h5 {[%clk
00:00:19]} {[%emt 00:00:02]} gxh5+ {[%clk 00:00:12]} {[%emt 00:00:11]} 56. Kxh5
{[%clk 00:00:20]} {[%emt 00:00:01]} Rc5 {[%clk 00:00:13]} {[%emt 00:00:02]} 57.
Rd3 {[%clk 00:00:15]} {[%emt 00:00:05]} Rd8 {[%clk 00:00:08]} {[%emt 00:00:08]}
58. Kg4 {[%clk 00:00:13]} {[%emt 00:00:04]} Rg8+ {[%clk 00:00:09]} 59. Kh4
{[%clk 00:00:11]} {[%emt 00:00:04]} Rg5 {[%clk 00:00:10]} 60. Rxd6 {[%clk
00:00:09]} {[%emt 00:00:02]} Rc4+ {[%clk 00:00:09]} {[%emt 00:00:05]} 61. Kh3
{[%clk 00:00:09]} {[%emt 00:00:02]} Kg6 {[%clk 00:00:11]} 62. Re3 {[%clk
00:00:08]} {[%emt 00:00:02]} Kf5 {[%clk 00:00:11]} {[%emt 00:00:02]} 63. Re4
{[%clk 00:00:09]} {[%emt 00:00:01]} Rxe4 {[%clk 00:00:09]} {[%emt 00:00:04]} 64.
fxe4+ {[%clk 00:00:10]} Kxe4 {[%clk 00:00:10]} 65. Rxf6 {[%clk 00:00:11]} Kxd5
{[%clk 00:00:08]} {[%emt 00:00:05]} 66. Rxh6 {[%clk 00:00:12]} 1/2-1/2